bitfinex/quotes_ETHUSD_20241003
["timestamp","ask_amount","ask_price","bid_price","bid_amount"]
[1727985509951,0.505554,2357.3,2356.8,0.7739]
[1727985510168,4.24216,2357.3,2356.8,0.7739]
[1727985510323,5.05563,2357.4,2356.8,0.7739]
[1727985510522,4.24222,2357.3,2356.8,0.7739]
[1727985510722,4.24192,2357.5,2356.8,0.7739]
[1727985511226,4.24204,2357.4,2356.8,0.7739]
[1727985511428,4.24204,2357.4,2356.8,1.699921]
[1727985511639,4.24183,2357.5,2356.9,0.8098]
[1727985511868,7.24177,2357.6,2356.9,0.8098]
[1727985511869,4.24174,2357.6,2356.9,0.8098]
[1727985512171,7.24178,2357.5,2356.9,0.8098]
[1727985513440,3.0,2357.5,2356.9,4.2427]
[1727985513642,4.24204,2357.4,2357.0,0.831]
[1727985514167,4.24216,2357.3,2357.0,0.831]
[1727985514541,4.24204,2357.4,2357.0,0.831]
[1727985514875,4.24228,2357.3,2357.0,0.831]
[1727985515868,4.24197,2357.4,2357.0,0.831]
[1727985516763,4.2418,2357.5,2357.0,0.831]
[1727985516967,3.0,2357.5,2357.0,5.07361]
[1727985517170,3.0,2357.5,2357.0,0.831]
[1727985517942,0.44414007,2358.0,2357.2,0.55]
[1727985518144,4.24134,2357.8,2357.3,0.7653]
[1727985518352,4.24071,2358.1,2357.3,0.7653]
[1727985518654,4.24126,2357.8,2357.3,0.7653]
[1727985519446,4.24168,2357.6,2357.3,0.7653]
[1727985519756,8.48345,2357.6,2357.3,0.7653]
[1727985520077,4.24168,2357.6,2357.3,0.7653]
[1727985520298,8.48345,2357.6,2357.3,0.7653]
[1727985520459,4.24168,2357.6,2357.3,0.7653]
[1727985520648,8.48336,2357.6,2357.3,0.7653]
[1727985520850,4.24168,2357.6,2357.3,0.7653]
[1727985522099,8.4834,2357.6,2357.3,0.7653]
[1727985522256,4.24168,2357.6,2357.3,0.7653]
[1727985522671,0.927067,2357.6,2356.8,4.24295]
[1727985522919,4.24192,2357.5,2356.9,1.3164]
[1727985523126,4.24196,2357.4,2356.9,1.3164]
[1727985523321,4.24217,2357.3,2356.9,0.7664]
[1727985523530,4.24239,2357.2,2356.9,0.7664]
[1727985523908,4.24217,2357.3,2356.9,0.7664]
[1727985524224,0.7756,2357.4,2356.9,0.7664]
[1727985524225,4.24198,2357.4,2356.9,0.7664]
[1727985524800,4.24194,2357.5,2356.9,1.267358]
[1727985525204,4.24197,2357.4,2356.9,1.267358]
[1727985525831,4.2418,2357.5,2357.0,0.7651]
[1727985526340,7.24186,2357.5,2357.0,0.7651]
[1727985526504,4.24197,2357.4,2357.0,0.7651]
[1727985527253,7.24186,2357.5,2357.0,1.3160018]
[1727985527565,3.0,2357.6,2357.2,0.7835]
[1727985527855,4.24179,2357.5,2357.2,0.7835]
[1727985528423,4.24152,2357.7,2357.2,0.7835]
[1727985528753,4.24143,2357.7,2357.2,0.7835]
[1727985528912,4.24132,2357.8,2357.4,0.7529]
[1727985529120,4.24134,2357.8,2357.4,0.7529]
[1727985529661,12.34845,2358.2,2357.5,0.55]
[1727985529662,4.24079,2358.1,2357.5,0.55]
[1727985529827,5.03853,2358.2,2357.7,0.55]
[1727985529828,4.24063,2358.2,2357.7,0.55]
[1727985530027,4.24063,2358.2,2357.7,1.325577]
[1727985530244,4.24037,2358.3,2357.7,5.566947]
[1727985530424,4.24037,2358.3,2357.7,4.775547]
[1727985530620,4.24052,2358.2,2357.8,0.7914]
[1727985531867,4.24041,2358.3,2357.8,0.7914]
[1727985532157,4.24029,2358.4,2358.0,0.7914]
[1727985532519,4.24041,2358.3,2358.0,0.7914]
[1727985533116,8.48059,2358.4,2358.0,0.7914]
[1727985533530,4.24041,2358.3,2358.0,0.87602681]
[1727985533730,8.4806,2358.4,2358.0,0.7914]
[1727985533944,4.24037,2358.3,2358.0,0.7914]
[1727985534355,4.24037,2358.3,2358.0,1.02177739]
[1727985535344,4.24037,2358.3,2358.0,0.7914]
[1727985535538,4.24059,2358.2,2358.0,0.7914]
[1727985535840,7.23981,2358.6,2357.7,0.806]
[1727985535841,4.24096,2358.0,2357.7,0.806]
[1727985536045,4.24093,2358.0,2357.7,0.806]
[1727985536265,4.24121,2357.9,2357.7,0.806]
[1727985536552,4.24124,2357.8,2357.7,0.806]
[1727985537130,4.24142,2357.7,2357.6,6.03111621]
[1727985537432,4.24142,2357.7,2357.5,0.806]
[1727985537739,4.24185,2357.5,2357.0,0.806]
[1727985538263,4.24241,2357.2,2357.0,0.806]
[1727985538561,4.2425,2357.1,2357.0,0.806]
[1727985538866,4.24278,2357.0,2356.7,0.8034]
[1727985539373,4.24294,2356.9,2356.4,6.03111621]
[1727985539561,4.24277,2357.0,2356.5,0.8034]
[1727985539926,4.24161,2357.6,2356.5,0.8034]
[1727985539927,4.24246,2357.2,2356.6,0.8034]
[1727985540236,7.24216,2357.3,2356.7,0.02235637]
[1727985540464,7.24216,2357.3,2356.8,0.8034]
[1727985540630,4.24233,2357.2,2356.8,0.8034]
[1727985541123,4.24217,2357.3,2356.9,0.02235446]
[1727985541324,4.24243,2357.2,2356.8,0.8034]
[1727985541646,4.242,2357.4,2356.8,0.8034]
[1727985542247,4.24225,2357.3,2356.8,2.13802317]
[1727985542744,4.24225,2357.3,2356.8,0.8034]
[1727985542944,3.0,2357.6,2357.0,0.7926]
[1727985543288,4.24106,2357.9,2357.2,0.7926]
[1727985543489,4.24143,2357.7,2357.2,0.7926]
[1727985543688,4.24181,2357.5,2357.2,0.7926]
[1727985544182,8.4837,2357.5,2357.2,0.7926]
[1727985544385,8.48369,2357.5,2357.2,0.7926]
[1727985544894,4.24203,2357.4,2357.2,0.7926]
[1727985545181,4.24214,2357.3,2357.2,0.7926]
[1727985545485,3.0,2357.8,2357.2,0.7926]
[1727985545788,4.24131,2357.8,2357.4,0.7896]
[1727985546117,4.24104,2358.0,2357.7,0.55]
[1727985546118,4.24089,2358.0,2357.7,0.55]
[1727985546391,4.24089,2358.0,2357.6,0.7511]
[1727985546751,4.24142,2357.7,2357.6,0.7511]
[1727985547254,4.24081,2358.1,2357.6,0.7511]
[1727985547569,4.2409,2358.0,2357.6,1.23187317]
[1727985547771,4.2409,2358.0,2357.7,0.02452769]
[1727985548247,4.2409,2358.0,2357.6,1.23187317]
[1727985548754,4.24108,2357.9,2357.6,0.7511]
[1727985549158,4.24082,2358.1,2357.7,0.0848233]
[1727985549561,4.2409,2358.0,2357.6,0.7511]
[1727985550655,8.48167,2358.1,2357.6,0.7511]
[1727985550857,4.24082,2358.1,2357.6,0.7511]
[1727985551088,4.24082,2358.1,2357.7,0.499272]
[1727985551466,4.24082,2358.1,2357.6,0.7511]
[1727985551467,4.24097,2358.0,2357.6,0.7511]
[1727985552351,4.2412,2357.9,2357.6,0.7511]
[1727985552548,4.24057,2358.2,2357.7,0.7699]
[1727985552789,4.24071,2358.1,2357.8,0.55]
[1727985553392,4.24099,2358.0,2357.7,0.7699]
[1727985553754,0.7865,2358.5,2357.8,0.55]
[1727985553755,4.24065,2358.2,2357.8,0.55]
[1727985553986,4.24071,2358.1,2357.8,0.55]
[1727985554595,4.2405,2358.3,2357.8,0.55]
[1727985554596,7.24056,2358.2,2357.8,0.55]
[1727985554764,4.24048,2358.3,2357.9,0.7701]
[1727985554966,4.24024,2358.4,2357.9,0.7701]
[1727985555670,4.24048,2358.3,2357.9,0.7701]
[1727985556271,4.24053,2358.2,2357.9,0.7701]
[1727985556471,4.24034,2358.3,2357.9,0.7701]
[1727985556798,4.24034,2358.3,2357.9,1.3818579]
[1727985557355,4.23999,2358.5,2358.0,0.55]
[1727985557562,8.48009,2358.5,2358.2,0.55]
[1727985557766,4.23999,2358.5,2358.2,0.55]
[1727985558196,4.23973,2358.7,2358.2,0.55]
[1727985558385,4.24016,2358.5,2358.1,0.7925]
[1727985558704,4.24011,2358.5,2358.1,1.35701579]
[1727985558885,4.24023,2358.4,2358.1,1.35701579]
[1727985559198,4.24023,2358.4,2358.1,0.7925]
[1727985559406,7.23993,2358.6,2358.2,0.55]
[1727985559620,4.24035,2358.3,2358.1,0.7925]
[1727985560262,4.2402,2358.4,2358.1,0.7925]
[1727985561176,0.44403697,2358.9,2358.3,0.7574]
[1727985561476,0.44403697,2358.9,2358.5,0.7641]
[1727985561803,4.23935,2358.9,2358.5,0.7641]
[1727985562403,4.23913,2359.0,2358.5,0.7641]
[1727985563574,3.005,2359.1,2358.5,0.7641]
[1727985563807,4.23979,2358.7,2358.5,0.7641]
[1727985564095,4.23979,2358.7,2358.3,0.7696]
[1727985564096,4.23976,2358.7,2358.3,0.7696]
[1727985564308,4.23992,2358.6,2358.3,0.7696]
[1727985564671,4.23999,2358.5,2358.1,6.03111621]
[1727985565215,4.23982,2358.6,2358.1,6.03111621]
[1727985565372,4.23971,2358.7,2358.1,11.80511983]
[1727985565572,4.23971,2358.7,2358.2,0.8162]
[1727985565803,8.47942,2358.7,2358.2,0.8162]
[1727985566110,4.2406,2358.2,2357.9,0.7572]
[1727985566308,4.24088,2358.0,2357.5,0.7572]
[1727985566523,0.7664,2358.3,2357.5,0.7572]
[1727985566524,4.24132,2357.8,2357.5,0.7572]
[1727985566725,8.48265,2357.8,2357.5,0.7572]
[1727985566875,4.24132,2357.8,2357.5,0.7572]
[1727985567960,4.24109,2357.9,2357.5,0.7572]
[1727985569168,4.24077,2358.1,2357.5,0.7572]
[1727985569381,4.24131,2357.8,2357.5,0.7572]
[1727985570000,4.24115,2357.9,2357.5,0.7572]
[1727985570311,8.48237,2357.9,2357.5,0.7572]
[1727985570476,1.224751,2358.1,2357.5,0.7572]
[1727985570679,4.24114,2357.9,2357.5,0.7572]
[1727985571083,4.24105,2358.0,2357.5,0.7572]
[1727985571291,4.2425,2357.1,2356.9,0.7767]
[1727985571603,4.24297,2356.9,2356.6,0.7767]
[1727985571920,4.24297,2356.9,2356.3,0.7767]
[1727985572429,0.8085,2357.3,2356.3,0.7767]
[1727985572430,4.24323,2356.7,2356.3,0.7767]
[1727985572718,4.24311,2356.8,2356.3,0.7767]
[1727985572921,4.24298,2356.9,2356.3,1.27878]
[1727985573131,4.24268,2357.0,2356.3,5.52271]
[1727985573420,4.24315,2356.8,2356.3,1.27878]
[1727985573618,8.48633,2356.8,2356.3,0.7767]
[1727985573782,4.24315,2356.8,2356.3,0.7767]
[1727985574184,4.24312,2356.8,2356.3,0.7767]
[1727985574485,4.24293,2356.9,2356.1,0.7976]
[1727985574684,4.24368,2356.5,2356.1,0.7976]
[1727985574926,4.24368,2356.5,2356.1,1.301812]
[1727985575127,4.24335,2356.7,2356.1,5.546032]
[1727985575473,4.24344,2356.6,2356.1,1.301812]
[1727985575785,4.24344,2356.6,2356.2,0.55]
[1727985576331,8.48697,2356.6,2356.2,0.55]
[1727985576628,4.24344,2356.6,2356.1,0.7976]
[1727985576921,0.7736,2357.1,2356.1,0.7976]
[1727985576922,0.7736,2357.1,2356.2,1.3631]
[1727985577126,0.7736,2357.1,2356.5,0.8131]
[1727985577414,4.24281,2357.0,2356.5,0.89796245]
[1727985577627,4.24281,2357.0,2356.5,0.8131]
[1727985577830,4.24281,2357.0,2356.6,0.560673]
[1727985577831,4.24288,2356.9,2356.6,0.560673]
[1727985577985,4.24247,2357.2,2356.6,0.55]
[1727985578301,4.24298,2356.9,2356.5,0.8131]
[1727985579114,0.44378795,2357.4,2356.7,0.8025]
[1727985579305,0.771,2357.6,2357.0,0.55]
[1727985579306,4.24193,2357.5,2357.0,0.55]
[1727985579505,4.24193,2357.5,2357.1,0.479284]
[1727985579506,4.242,2357.4,2357.1,0.479284]
[1727985579789,4.242,2357.4,2357.0,0.61923279]
[1727985580326,0.771,2357.6,2356.7,5.04561]
[1727985580327,4.24244,2357.2,2356.7,0.8025]
[1727985580490,4.24244,2357.2,2356.8,0.55]
[1727985581334,4.24244,2357.2,2356.9,0.06810513]
[1727985581651,4.24225,2357.3,2356.9,0.63448564]
[1727985581931,4.2419,2357.5,2357.0,1.3102]
[1727985582129,4.2419,2357.5,2357.1,0.06809935]
[1727985582485,4.24164,2357.6,2357.1,0.06809935]
[1727985582681,4.2418,2357.5,2357.1,0.06809935]
[1727985582924,4.24151,2357.7,2357.2,0.55]
[1727985583124,7.2409,2358.0,2357.4,4.24195]
[1727985583125,4.24097,2358.0,2357.4,4.24195]
[1727985583329,4.24097,2358.0,2357.3,0.7695]
[1727985583330,4.24126,2357.8,2357.3,0.81641257]
[1727985583553,4.24126,2357.8,2357.4,0.04691057]
[1727985583755,4.24078,2358.1,2357.5,0.55]
[1727985583894,0.44374368,2358.2,2357.5,0.55]
[1727985583895,0.44374368,2358.2,2357.7,0.55]
[1727985584101,4.24072,2358.1,2357.8,0.08481334]
[1727985584342,0.7952,2358.8,2357.8,0.8095]
[1727985584525,0.44377029,2358.5,2358.1,0.8095]
[1727985584696,4.23994,2358.6,2358.2,0.08480099]
[1727985585320,4.24017,2358.4,2358.1,0.8095]
[1727985586295,4.24017,2358.4,2358.1,0.89413714]
[1727985586758,4.23989,2358.6,2358.1,0.89413714]
[1727985587327,8.47987,2358.6,2358.1,0.89413714]
[1727985587530,3.0,2358.8,2358.1,0.89413714]
[1727985587531,4.24019,2358.4,2358.1,0.89413714]
[1727985587922,8.4802,2358.5,2358.1,0.89413714]
[1727985588256,4.24017,2358.4,2358.1,1.46264585]
[1727985588625,4.24006,2358.5,2358.1,1.46264585]
[1727985588857,8.4802,2358.5,2358.1,1.46264585]
[1727985589274,4.23929,2358.9,2358.2,0.63472143]
[1727985589568,4.23929,2358.9,2358.5,0.55]
[1727985589859,4.23929,2358.9,2358.5,0.7987]
[1727985590036,4.23929,2358.9,2358.6,0.558882]
[1727985590240,4.23945,2358.8,2358.5,0.7987]
[1727985590559,0.005,2359.1,2358.6,0.55]
[1727985590761,0.005,2359.1,2358.5,0.7987]
[1727985590762,4.23934,2358.9,2358.5,0.7987]
[1727985590927,4.23914,2359.0,2358.5,0.7987]
[1727985591123,4.23914,2359.0,2358.6,0.55]
[1727985591549,4.23914,2359.0,2358.7,0.02282991]
[1727985591780,8.47836,2359.0,2358.7,0.03346331]
[1727985592067,4.23914,2359.0,2358.7,0.08478214]
[1727985592736,0.005,2359.1,2358.7,0.08478214]
[1727985592936,4.24391,2359.1,2358.7,1.16888785]
[1727985593237,0.005,2359.1,2358.8,0.7843]
[1727985593438,0.005,2359.1,2358.9,0.08477495]
[1727985593623,4.23908,2359.0,2358.8,0.7843]
[1727985593829,0.005,2359.1,2358.8,0.7843]
[1727985593830,4.24393,2359.1,2358.8,0.7843]
[1727985594038,4.2391,2359.0,2358.8,0.7843]
[1727985594246,0.005,2359.1,2358.9,0.55]
[1727985594530,0.005,2359.1,2359.0,1.10736]
[1727985594758,0.005,2359.1,2359.0,0.55]
[1727985595073,0.005,2359.1,2358.9,0.55]
[1727985595361,0.005,2359.1,2358.8,0.7843]
[1727985595663,0.005,2359.1,2358.9,0.55]
[1727985595968,0.005,2359.1,2358.9,0.63458889]
[1727985596365,0.009,2359.1,2358.9,0.63458889]
[1727985596669,0.009,2359.1,2359.0,0.0845853]
[1727985596870,0.009,2359.1,2358.9,1.11584089]
[1727985597029,0.009,2359.1,2358.9,0.55]
[1727985597531,0.009,2359.1,2359.0,1.42997291]
[1727985597757,0.009,2359.1,2359.0,1.3452]
[1727985598536,4.23919,2359.0,2358.7,0.7957]
[1727985598773,4.23919,2359.0,2358.4,6.03111621]
[1727985598774,4.23944,2358.8,2358.4,6.03111621]
[1727985598932,4.23983,2358.6,2358.4,0.76]
[1727985599130,4.23963,2358.7,2358.4,0.76]
[1727985599366,4.23993,2358.6,2358.4,0.76]
[1727985599577,8.47986,2358.6,2358.4,0.76]
[1727985599865,0.009,2359.1,2358.4,0.76]
[1727985600065,4.23988,2358.6,2358.1,0.7788]
[1727985600229,4.24011,2358.5,2358.1,0.7788]
[1727985600429,4.24028,2358.4,2358.1,0.7788]
[1727985600968,4.24035,2358.3,2358.1,0.7788]
[1727985601273,0.0258,2358.5,2358.1,0.7788]
[1727985601431,0.0258,2358.5,2357.9,4.99014589]
[1727985601432,0.0258,2358.5,2358.4,4.24016]
[1727985601632,0.0258,2358.5,2358.4,6.525907]
[1727985602326,0.0258,2358.5,2358.4,2.285747]
[1727985602531,0.0258,2358.5,2358.4,1.3827]
[1727985603283,0.009,2359.1,2359.0,0.8278]
[1727985603430,0.009,2359.1,2358.4,0.55]
[1727985603431,0.009,2359.1,2358.6,0.8278]
[1727985603630,0.009,2359.1,2358.4,0.55]
[1727985603631,0.7532,2358.9,2358.4,0.55]
[1727985603833,4.24009,2358.5,2358.2,0.8278]
[1727985604031,4.23981,2358.6,2358.2,0.8278]
[1727985604333,4.2398,2358.6,2358.2,0.8278]
[1727985604557,4.23954,2358.8,2358.2,0.8278]
[1727985604887,1.253314,2358.9,2357.9,0.7914]
[1727985604888,4.2398,2358.6,2357.9,0.7914]
[1727985605044,4.2398,2358.6,2358.0,4.24076]
[1727985605367,4.23965,2358.7,2358.1,0.55]
[1727985605622,4.23965,2358.7,2358.1,4.79056]
[1727985605962,4.23965,2358.7,2358.2,0.8027]
[1727985606314,0.9732364,2358.7,2357.9,0.8027]
[1727985606511,0.9732364,2358.7,2357.3,6.03111621]
[1727985606512,4.24098,2358.0,2357.5,0.8027]
[1727985606667,0.8141,2358.0,2357.5,0.8027]
[1727985607021,4.24122,2357.9,2357.3,4.9955]
[1727985607169,0.8141,2358.0,2357.1,0.61873399]
[1727985607170,4.24175,2357.6,2357.1,0.61873399]
[1727985607501,0.8141,2358.0,2357.0,0.7747]
[1727985607667,8.48418,2357.4,2357.0,0.7747]
[1727985608004,4.2425,2357.1,2356.5,0.7747]
[1727985608211,3.0,2357.2,2356.5,5.01827]
[1727985608422,3.0,2357.2,2356.6,4.24329]
[1727985608660,0.8071,2357.3,2356.8,4.24301]
[1727985608916,3.0,2357.4,2356.8,4.32783824]
[1727985609121,3.0,2357.4,2356.8,0.08482824]
[1727985609122,4.24215,2357.3,2356.8,0.08482824]
[1727985609358,3.0,2357.4,2356.8,0.61025566]
[1727985609615,3.0,2357.4,2356.8,4.85320566]
[1727985609817,4.24219,2357.3,2356.9,0.55]
[1727985609978,4.24226,2357.3,2356.9,0.55]
[1727985610175,3.7598,2357.6,2356.9,0.55]
[1727985610176,4.24232,2357.2,2356.9,0.55]
[1727985610382,4.24279,2357.0,2356.5,0.7747]
[1727985610615,4.24279,2357.0,2356.6,0.63434209]
[1727985610783,4.24286,2356.9,2356.6,0.63434209]
[1727985610979,4.24286,2356.9,2356.5,0.7747]
[1727985611683,4.24251,2357.1,2356.5,5.01817]
[1727985611876,4.24251,2357.1,2356.5,9.26161]
[1727985612225,4.24251,2357.1,2356.5,5.01814]
[1727985612422,4.24251,2357.1,2356.6,4.24339]
[1727985612585,4.24251,2357.1,2356.7,0.926153]
[1727985612981,4.24269,2357.0,2356.7,0.926153]
[1727985613208,4.2425,2357.1,2356.7,0.926153]
[1727985613521,8.48548,2357.0,2356.7,0.926153]
[1727985613686,8.48548,2357.0,2356.6,0.08485659]
[1727985613890,4.24296,2356.9,2356.6,0.08485659]
[1727985614089,4.24308,2356.8,2356.6,0.55]
[1727985614611,4.24287,2356.9,2356.6,0.55]
[1727985615314,5.04665,2357.1,2356.6,0.55]
[1727985615315,4.24271,2357.0,2356.6,0.55]
[1727985615538,4.24265,2357.1,2356.6,0.55]
[1727985615674,4.24265,2357.1,2356.6,1.41599021]
[1727985615895,4.24265,2357.1,2356.6,5.65933021]
[1727985616079,7.24203,2357.4,2357.0,0.55]
[1727985616580,4.24189,2357.5,2357.0,4.79251]
[1727985616941,5.04554,2357.7,2357.0,4.79251]
[1727985616942,4.24162,2357.6,2357.2,0.55]
[1727985617149,4.24162,2357.6,2357.2,0.61357817]
[1727985617707,4.24121,2357.9,2357.2,4.85588817]
[1727985617922,4.24151,2357.7,2357.2,4.85588817]
[1727985618136,4.24151,2357.7,2357.3,5.01713]
[1727985618406,4.24119,2357.9,2357.4,4.85552277]
[1727985618750,4.24117,2357.9,2357.4,4.85552277]
[1727985618961,4.24126,2357.8,2357.4,0.61357277]
[1727985619239,0.7952,2358.1,2357.4,0.55]
[1727985619441,4.24158,2357.7,2357.4,0.55]
[1727985619595,4.2416,2357.6,2357.4,0.55]
[1727985619794,4.24158,2357.7,2357.4,0.55]
[1727985621295,4.24158,2357.7,2357.4,1.106712]
[1727985621827,4.24152,2357.7,2357.4,1.106712]
[1727985622005,4.24152,2357.7,2357.4,0.55]
[1727985623157,4.24152,2357.7,2357.4,0.62515561]
[1727985623441,4.24152,2357.7,2357.4,0.55]
[1727985623944,4.24126,2357.8,2357.4,1.95018449]
[1727985624141,4.24081,2358.1,2357.4,1.87498089]
[1727985624444,3.0,2358.2,2357.8,5.55821]
[1727985624754,7.24059,2358.2,2357.8,1.317]
[1727985625046,4.24073,2358.1,2357.8,1.317]
[1727985625246,7.24059,2358.2,2357.8,1.317]
[1727985625450,4.24087,2358.1,2357.8,1.317]
[1727985625751,4.2415,2357.7,2357.5,1.32498089]
[1727985625962,4.24095,2358.0,2357.6,4.7916]
[1727985626312,8.48192,2358.0,2357.6,0.55]
[1727985626513,0.8152,2358.2,2357.6,1.32498089]
[1727985626739,0.8152,2358.2,2357.4,1.76664119]
[1727985626740,4.24155,2357.7,2357.5,1.32498089]
[1727985627051,4.2416,2357.6,2357.5,1.32498089]
[1727985627353,4.2416,2357.6,2357.5,1.76664119]
[1727985627533,4.2416,2357.6,2357.5,1.32003003]
[1727985627734,4.24127,2357.8,2357.5,1.32003003]
[1727985627735,8.48265,2357.8,2357.5,1.32003003]
[1727985628118,4.24127,2357.8,2357.5,1.32003003]
[1727985628517,8.48263,2357.8,2357.6,1.32003003]
[1727985628838,8.48263,2357.8,2357.5,1.76664119]
[1727985628839,8.48263,2357.8,2357.5,1.32003003]
[1727985629039,4.24143,2357.7,2357.6,1.32003003]
[1727985630139,4.24143,2357.7,2357.5,1.32003003]
[1727985630827,4.24143,2357.7,2357.4,1.32003003]
[1727985631026,4.24127,2357.8,2357.4,7.01552756]
[1727985631027,8.48264,2357.8,2357.4,7.01552756]
[1727985631228,4.24146,2357.7,2357.4,2.77357756]
[1727985631440,4.24168,2357.6,2357.3,2.08433003]
[1727985631769,4.24146,2357.7,2357.3,2.08433003]
[1727985631770,4.24178,2357.5,2357.3,1.32003003]
[1727985632059,4.24214,2357.3,2357.2,1.32003003]
[1727985632212,4.24214,2357.3,2357.1,1.76664119]
[1727985632213,4.24232,2357.2,2357.1,1.32003003]
[1727985632420,4.24232,2357.2,2357.0,1.32003003]
[1727985632732,4.24227,2357.3,2357.1,1.32003003]
[1727985633066,4.24227,2357.3,2357.0,1.32003003]
[1727985633067,8.48457,2357.3,2357.0,1.32003003]
[1727985633365,4.24236,2357.2,2357.1,1.32003003]
[1727985633523,4.24236,2357.2,2357.0,1.76664119]
[1727985633524,4.24217,2357.3,2357.0,1.32003003]
[1727985633923,4.24194,2357.5,2357.1,0.55]
[1727985634244,4.24162,2357.6,2357.3,1.3437]
[1727985634752,4.24145,2357.7,2357.3,1.3437]
[1727985634954,4.24145,2357.7,2357.3,5.63660323]
[1727985635155,4.24145,2357.7,2357.3,1.3437]
[1727985635333,4.24168,2357.6,2357.3,1.902285]
[1727985636150,4.24178,2357.5,2357.3,3.22231503]
[1727985636352,4.24196,2357.4,2357.3,1.3437]
[1727985636526,4.2411,2357.9,2357.3,2.66373003]
[1727985636729,8.48371,2357.5,2357.3,1.3437]
[1727985636952,4.24181,2357.5,2357.3,1.3437]
[1727985637261,4.24181,2357.5,2357.3,1.87003003]
[1727985637560,4.24181,2357.5,2357.2,0.55]
[1727985638062,4.24211,2357.4,2357.2,1.32003003]
[1727985638266,4.24211,2357.4,2357.1,1.32003003]
[1727985638423,4.24211,2357.4,2357.2,1.32003003]
[1727985638749,4.24211,2357.4,2357.1,3.86921097]
[1727985638750,4.24232,2357.2,2357.1,1.32003003]
[1727985639124,5.0457,2357.1,2357.0,1.32003003]
[1727985639324,4.24268,2357.0,2356.9,1.32003003]
[1727985639562,4.24286,2356.9,2356.8,2.20385779]
[1727985639865,4.24286,2356.9,2356.7,2.64462935]
[1727985640056,4.24304,2356.8,2356.7,2.64462935]
[1727985640661,4.24304,2356.8,2356.6,2.64462935]
[1727985640827,4.24304,2356.8,2356.5,3.46442935]
[1727985641022,4.24286,2356.9,2356.7,2.20446159]
[1727985641223,5.07508,2357.3,2356.8,1.76353251]
[1727985641447,7.2424,2357.2,2356.9,1.32260989]
[1727985641666,7.2424,2357.2,2356.8,1.32260989]
[1727985642563,4.24217,2357.3,2357.0,0.7923]
[1727985642764,4.24164,2357.6,2357.1,4.745874]
[1727985643093,4.24164,2357.6,2357.1,4.81315265]
[1727985643251,4.24186,2357.5,2357.1,4.81328265]
[1727985643954,4.24162,2357.6,2357.2,4.24232]
[1727985644149,8.48338,2357.6,2357.2,0.06723166]
[1727985644464,4.24162,2357.6,2357.3,0.55]
[1727985645751,8.48337,2357.6,2357.3,0.55]
[1727985645955,4.24162,2357.6,2357.3,0.55]
[1727985646173,4.24186,2357.5,2357.2,0.69281056]
[1727985646359,4.24186,2357.5,2357.1,0.55]
[1727985646692,4.24186,2357.5,2357.0,0.7923]
[1727985646693,4.24224,2357.3,2357.0,0.7923]
[1727985646980,8.48456,2357.3,2357.0,0.7923]
[1727985647182,4.24224,2357.3,2357.0,1.89894162]
[1727985647739,0.004,2357.5,2357.0,1.89894162]
[1727985647941,0.004,2357.5,2357.1,0.55]
[1727985648221,0.004,2357.5,2357.4,5.60506]
[1727985648348,0.004,2357.5,2357.4,5.68250753]
[1727985648680,0.004,2357.5,2357.4,6.67496928]
[1727985649782,0.004,2357.5,2357.4,6.59752175]
[1727985650084,0.004,2357.5,2357.4,0.8131]
[1727985650317,4.24591,2357.5,2357.2,0.55]
[1727985650812,0.004,2357.5,2357.2,0.55]
[1727985651571,4.24579,2357.5,2357.1,0.8146]
[1727985651775,4.24579,2357.5,2357.1,5.05709]
[1727985651976,4.24579,2357.5,2357.2,0.60328939]
[1727985652368,4.24579,2357.5,2357.0,1.10664162]
[1727985652572,4.24579,2357.5,2357.1,0.55]
[1727985653274,4.24205,2357.4,2357.0,5.34929162]
[1727985653879,0.004,2357.5,2357.1,5.82989016]
[1727985654096,0.004,2357.5,2357.2,4.2422]
[1727985654286,0.004,2357.5,2357.1,5.82989016]
[1727985654537,4.24578,2357.5,2357.1,10.13397799]
[1727985654686,0.004,2357.5,2357.2,4.24218]
[1727985654897,0.004,2357.5,2357.3,4.82508002]
[1727985655113,0.004,2357.5,2357.3,0.58296002]
[1727985657128,0.004,2357.5,2357.4,0.7915]
[1727985657281,0.004,2357.5,2357.4,5.66829476]
[1727985660039,0.004,2357.5,2357.4,10.57360589]
[1727985660219,0.004,2357.5,2357.4,12.11346148]
[1727985660528,0.004,2357.5,2357.4,15.11346148]
[1727985660728,0.004,2357.5,2357.4,15.53886148]
[1727985661032,0.004,2357.5,2357.4,15.91665949]
[1727985662734,0.004,2357.5,2357.4,9.57331559]
[1727985663232,0.004,2357.5,2357.4,5.33135559]
[1727985663406,0.004,2357.5,2357.4,2.33135559]
[1727985663614,0.004,2357.5,2357.4,10.02360589]
[1727985663799,0.004,2357.5,2357.4,10.44900589]
[1727985663997,0.004,2357.5,2357.4,10.82618335]
[1727985664208,0.004,2357.5,2357.4,11.37618335]
[1727985664425,0.004,2357.5,2357.4,10.99900589]
[1727985664625,0.004,2357.5,2357.4,15.58140148]
[1727985664939,0.004,2357.5,2357.4,10.59125559]
[1727985665253,0.004,2357.5,2357.4,7.59125559]
[1727985665749,0.004,2357.5,2357.4,7.16585559]
[1727985669818,0.004,2357.5,2357.4,2.13239559]
[1727985670037,0.004,2357.5,2357.3,4.24199]
[1727985670458,0.004,2357.5,2357.1,4.24233]